Cogmind - Beta 14 @@@ ROGUE MODE // 2024.10.01 @ 20:30:59 Player: Pitt Result: Destroyed by T3-IZV(R) with Subdweller Shrapnel Launcher Performance ------------- Evolutions (0) 0 Regions Visited (3) 600 Robots Destroyed (33) 165 Value Destroyed (512) 512 Prototype IDs (2) 40 Alien Tech Used (0) 0 Bonus (0) 0 TOTAL SCORE: 1317 Bonus ------- None Cogmind --------- Core Integrity 0/250 Matter 300/300 Energy 125/125 System Corruption 0% Temperature Cool (0) Movement Flying (117) Ox1 Location -10/Subcaves Parts ------- > --- POWER (1) -------- Light Ion Engine > --- PROPULSION (2) --- Flight Unit Flight Unit > --- UTILITY (2) ------ Small Storage Unit Improved Terrain Scanner > --- WEAPON (2) ------- Mining Laser > --- INVENTORY (8) ---- Light Ion Engine Flight Unit Flight Unit Seismic Detector Improved Propulsion Shielding Scrap Shield Pulse Rifle Peak State ------------ > --- POWER ------------ Light Ion Engine > --- PROPULSION ------- Flight Unit Flight Unit > --- UTILITY ---------- Small Storage Unit Improved Terrain Scanner > --- WEAPON ----------- Pulse Rifle > --- INVENTORY -------- Light Ion Engine Light Ion Engine Flight Unit Flight Unit Heat Sink Seismic Detector Improved Propulsion Shielding Mining Laser [Rating: 11] Favorites ----------- Power Light Ion Engine Engine Light Ion Engine Propulsion Flight Unit Leg Aluminum Leg Wheel Wheel Flight Unit Flight Unit Utility Small Storage Unit Device Improved Terrain Scanner Storage Small Storage Unit Weapon Medium Laser Energy Gun Medium Laser Ballistic Gun Light Assault Rifle Special Weapon Mining Laser Build | -11 -10 -10 -10 ------- Run | Yrd Mat Min Sub Slots Evolved . | . . . . Power . | . . . . Propulsion . | . . . . Utility . | . . . . Weapon . | . . . . Parts Attached 23 | 7 9 6 1 Power 4 | 1 1 1 1 Engine 4 | 1 1 1 1 Core . | . . . . Reactor . | . . . . Propulsion 9 | 2 5 2 . Treads . | . . . . Leg 3 | . 3 . . Wheel 4 | 2 2 . . Hover . | . . . . Flight 2 | . . 2 . Utility 4 | 2 1 1 . Device 3 | 1 1 1 . Storage 1 | 1 . . . Processor . | . . . . Hackware . | . . . . Protection . | . . . . Artifact . | . . . . Weapon 6 | 2 2 2 . Energy Gun 4 | 1 2 1 . Energy Cannon . | . . . . Ballistic Gun 1 | 1 . . . Ballistic Cannon . | . . . . Launcher . | . . . . Special Weapon 1 | . . 1 . Impact Weapon . | . . . . Slashing Weapon . | . . . . Piercing Weapon . | . . . . Special Melee Weapon . | . . . . Unidentified Prototypes . | . . . . Parts Lost 4 | . 3 1 . Power 1 | . . 1 . Propulsion 2 | . 2 . . Utility 1 | . 1 . . Weapon . | . . . . Highest Loss Streak 2 | . 2 1 . To Critical Strikes . | . . . . Average Slot Usage (%) 89 | . 94 87 85 Engine 13 | . 14 12 14 Leg 3 | . 5 1 . Wheel 6 | . 21 . . Flight 17 | . . 25 28 Device 12 | . 10 14 14 Storage 14 | . 14 14 14 Energy Gun 14 | . 16 15 . Ballistic Gun 3 | . 11 . . Special Weapon 2 | . . 1 14 Peak Build Rating 11 | 9 9 11 9 Average Rating 8 | 7 7 9 9 On Entrance 6 | . 9 7 9 Naked Turns . | . . . . Heaviest Build 14 | 12 14 13 10 Greatest Support 20 | 20 20 20 8 Greatest Overweight (x) 4 | . 4 1 1 Average Overweight (x) . | . . . 1 Largest Inventory Capacity 8 | 8 8 8 8 Average Capacity 7 | 7 8 8 8 Most Carried 8 | 7 8 8 8 Average Carried 6 | 3 7 7 7 Final Capacity 8 | 8 8 8 8 Final Carried 8 | 7 8 8 8 Class Distribution -------------------- 64% | Scavenger-Mutant 35% | Mutant Dominant Class ---------------- Mutant | -10/Materials Scavenger-Mutant | -10/Mines Scavenger-Mutant | -10/Subcaves Resources | -11 -10 -10 -10 ----------- Run | Yrd Mat Min Sub Matter Collected 473 | 234 123 86 30 Remotely . | . . . . Salvage Created 968 | 245 413 310 . Parts 72 | 24 27 21 . Haulers Intercepted . | . . . . Recyclers Shooed 7 | 1 3 3 . Parts Field Recycled . | . . . . Retrieved Matter . | . . . . Parts Self-Destructed . | . . . . Prevented . | . . . . Kills | -11 -10 -10 -10 ------- Run | Yrd Mat Min Sub Combat Hostiles Destroyed 18 | . 13 5 . Guns 18 | . 13 5 . Classes Destroyed 7 | 3 3 1 . Worker 1 | 1 . . . Builder 1 | . . 1 . Tunneler 9 | 8 . 1 . Recycler 3 | 1 . 2 . Watcher 1 | . 1 . . Swarmer 9 | . 6 3 . Grunt 9 | . 7 2 . Best Kill Streak 7 | 4 4 7 . Combat Bots Only 4 | . 4 3 . Max Kills in Single Turn 1 | 1 1 1 . Gunslinging . | . . . . Exploded . | . . . . Melee . | . . . . Uniques/NPCs Destroyed . | . . . . Combat | -11 -10 -10 -10 -------- Run | Yrd Mat Min Sub Hostile Shots Fired 124 | . 69 54 1 Missed 40 | . 21 19 . Damage Taken 839 | . 478 320 41 Core 260 | . 137 82 41 Absorbed by Shields . | . . . . Core Remaining (%) 100 | 100 . . . Volleys Fired 107 | 26 45 36 . Largest 2 | 2 2 2 . Hottest 100 | 70 80 100 . Shots Fired 187 | 52 80 55 . Gun 180 | 52 80 48 . Cannon . | . . . . Launcher . | . . . . Special 7 | . . 7 . Kinetic 68 | 26 42 . . Thermal 119 | 26 38 55 . Explosive . | . . . . Electromagnetic . | . . . . Robot Hit Streak 14 | 8 14 8 . Robot Miss Streak 7 | 1 4 7 . Penetration Max . | . . . . Secondary Targets 4 | . 2 2 . Max Gunslinging Chain 1 | . 1 1 . Shots Hit Robots 115 | 36 52 27 . Core Hits 53 | 16 25 12 . Critical Kills . | . . . . Critical Parts Destroyed . | . . . . Critical Strikes 4 | 3 . 1 . Burn 4 | 3 . 1 . Melee Attacks . | . . . . Impact . | . . . . Slashing . | . . . . Piercing . | . . . . Sneak Attacks . | . . . . Combat Hostiles . | . . . . Follow-up Attacks . | . . . . Damage Inflicted 1270 | 364 552 354 . Guns 1267 | 364 549 354 . Cannons . | . . . . Explosions . | . . . . Melee . | . . . . Ramming 3 | . 3 . . Kinetic 370 | 153 217 . . Thermal 897 | 211 332 354 . Explosive . | . . . . Electromagnetic . | . . . . Impact . | . . . . Slashing . | . . . . Piercing . | . . . . Highest Corruption . | . . . . Average Corruption . | . . . . Corruption Purged . | . . . . Corruption Blocked . | . . . . Overload Shots . | . . . . Overflow Damage . | . . . . Projectiles . | . . . . Explosions . | . . . . Melee . | . . . . Knockbacks . | . . . . Impact . | . . . . Kinetic . | . . . . Secondary . | . . . . Self-Inflicted Damage 1 | . 1 . . Shots . | . . . . Rammed 1 | . 1 . . Targets Rammed 1 | . 1 . . Kicked . | . . . . Crushed . | . . . . Highest Temperature 176 | 130 176 124 . Average Temperature 56 | 42 62 61 . Received Heat Transfer 258 | . 192 60 6 Siege Activations . | . . . . Robots Corrupted . | . . . . Combat Hostiles . | . . . . Parts Fried . | . . . . Impact Corruptions . | . . . . Robots Melted . | . . . . Combat Hostiles . | . . . . Parts Melted 3 | . . 3 . Heat Transferred 2647 | 851 939 857 . Parts Sabotaged . | . . . . Parts Stolen . | . . . . Parts Stripped . | . . . . Power Chain Reactions . | . . . . Alert | -11 -10 -10 -10 ------- Run | Yrd Mat Min Sub Peak Influence 366 | 50 366 272 . Initial 142 | . 32 142 . Average 161 | 25 219 189 . Maximum Alert Level 1 | . 1 1 . Low Security (%) 50 | 100 39 34 . Level 1 49 | . 60 65 . Level 2 . | . . . . Level 3 . | . . . . Level 4 . | . . . . Level 5 . | . . . . High Security . | . . . . Max Security . | . . . . Squads Dispatched 3 | . 2 1 . Investigation 2 | . 1 1 . Extermination . | . . . . Reinforcement 1 | . 1 . . Assault . | . . . . Garrison . | . . . . Intercept . | . . . . Searches Triggered . | . . . . Construction Impeded . | . . . . Haulers Reinforced . | . . . . Active Scanning Responses . | . . . . Cargo Convoy Interrupts . | . . . . Stealth | -11 -10 -10 -10 --------- Run | Yrd Mat Min Sub Distress Signals 1 | . 1 . . Communications Jammed . | . . . . Distress Signals . | . . . . Times Spotted 26 | . 18 5 3 Peak Tracking Total 5 | . 5 3 3 Tactical Retreats 2 | . 2 . . Traps | -11 -10 -10 -10 ------- Run | Yrd Mat Min Sub Traps Triggered . | . . . . Indirectly . | . . . . Trap Hack Attempts . | . . . . Triggered . | . . . . Disarmed . | . . . . Reprogrammed . | . . . . Reused . | . . . . Traps Extracted . | . . . . Installed . | . . . . Triggered . | . . . . Machines | -11 -10 -10 -10 ---------- Run | Yrd Mat Min Sub Machines Disabled . | . . . . Max in Single Turn . | . . . . Machines Repaired . | . . . . Machines Dismantled . | . . . . Machines Sabotaged . | . . . . Overloaded Fab Kills . | . . . . Hacking | -11 -10 -10 -10 --------- Run | Yrd Mat Min Sub Machines Accessed 3 | . 2 1 . Terminals 2 | . 2 . . Fabricators . | . . . . Repair Stations . | . . . . Recycling Units . | . . . . Scanalyzers . | . . . . Garrison Access . | . . . . Total Hacks 11 | . 10 1 . Successful 6 | . 5 1 . Failed 5 | . 5 . . Catastrophic 1 | . 1 . . Database Lockouts . | . . . . Manual 1 | . 1 . . Terminals 10 | . 10 . . Fabricators . | . . . . Repair Stations . | . . . . Recycling Units . | . . . . Scanalyzers . | . . . . Garrison Access . | . . . . Terminal Hacks 6 | . 5 1 . Robot Analysis 1 | . 1 . . Prototype ID Bank 1 | . 1 . . Open Door 1 | . . 1 . Alert Level 1 | . 1 . . Reinforcement Status 1 | . 1 . . Registered Components 1 | . 1 . . Fabricator Hacks . | . . . . Repair Station Hacks . | . . . . Recycling Unit Hacks . | . . . . Scanalyzer . | . . . . Garrison Access Hacks . | . . . . Unauthorized Hacks . | . . . . Terminals . | . . . . Fabricators . | . . . . Repair Stations . | . . . . Recycling Units . | . . . . Scanalyzers . | . . . . Garrison Access . | . . . . Data Cores Recovered . | . . . . Used . | . . . . Hacking Detections 1 | . 1 . . Full Trace Events 1 | . 1 . . Feedback Events . | . . . . Feedback Blocked . | . . . . Robot Schematics Acquired . | . . . . Robots Built . | . . . . Authchips . | . . . . Time . | . . . . Total Robot Build Rating . | . . . . Part Schematics Acquired . | . . . . Parts Built . | . . . . Authchips . | . . . . Time . | . . . . Total Part Build Rating . | . . . . Parts Repaired . | . . . . Time . | . . . . Parts Recycled . | . . . . Recycled Matter . | . . . . Retrieved Matter . | . . . . Retrieved Components . | . . . . Parts Scanalyzed . | . . . . Part Schematics Acquired . | . . . . Parts Damaged . | . . . . Bothacking | -11 -10 -10 -10 ------------ Run | Yrd Mat Min Sub Used RIF Installer . | . . . . Robots Hacked . | . . . . Non-combat . | . . . . Combat . | . . . . Robot Hacks Applied . | . . . . Relay Couplers Released . | . . . . Fabnet Peak Effective % . | . . . . Robots Rewired . | . . . . Allies Hacked . | . . . . Hacks Repelled . | . . . . Allies | -11 -10 -10 -10 -------- Run | Yrd Mat Min Sub Total Allies . | . . . . Largest Group . | . . . . Highest-Rated Group . | . . . . Highest-Rated Ally . | . . . . Total Orders . | . . . . Ally Attacks . | . . . . Total Damage . | . . . . Kills . | . . . . Allies Corrupted . | . . . . Allies Melted . | . . . . Intel | -11 -10 -10 -10 ------- Run | Yrd Mat Min Sub Robot Analysis Total 1 | . 1 . . Derelict Logs Recovered 1 | . . 1 . Drone Launches . | . . . . Drone Recoveries . | . . . . Exploration | -11 -10 -10 -10 ------------- Run | Yrd Mat Min Sub Turns Passed 1219 | 256 322 562 79 Spaces Moved 562 | 120 182 214 46 Core 3 | 1 2 . . Treads . | . . . . Legs 46 | . 41 5 . Wheels 258 | 119 139 . . Hover . | . . . . Flight 255 | . . 209 46 Fastest Speed 37 | 50 80 37 117 Average Speed 97 | 79 91 108 117 Slowest Speed 250 | 80 250 120 117 Overloaded Moves . | . . . . Propulsion Burnouts . | . . . . Robots Hopped . | . . . . Cave-ins Triggered . | . . . . Exploration Rate (%) 23 | 5 37 44 6 Regions Visited 3 Branch Regions 2 Pre-discovered Areas . | . . . . Known Exits Taken 1 | . . 1 . Unknown Exits Taken 2 | 1 1 . . Scrap Searched 2 | . . 2 . Spaces Dug 7 | . . 7 . Terrain Destroyed 7 | . . 7 . Melee . | . . . . Projectile 7 | . . 7 . AOE . | . . . . Terrain Rammed . | . . . . Walls Destroyed . | . . . . Machines Disabled . | . . . . Actions | -11 -10 -10 -10 --------- Run | Yrd Mat Min Sub Total 1041 | 229 264 476 72 Wait 320 | 70 23 205 22 Move 559 | 119 181 213 46 Hop . | . . . . Pick Up 15 | 7 1 6 1 Fast Attach 14 | 7 4 3 . Attach . | . . . . Detach 1 | . . 1 . Swap 9 | . 5 3 1 Drop 15 | . 4 9 2 Fire 107 | 26 45 36 . Melee . | . . . . Ram 1 | . 1 . . Kick . | . . . . Crush . | . . . . Escape Stasis . | . . . . Rewire . | . . . . Trap . | . . . . Miscellaneous . | . . . . Route ------- -11/Scrapyard -10/Materials -10/Mines (discovered 3 exits: [*Mat x2] / *Sub) -10/Subcaves History --------- Turn | Location | Event 13 | -11/Scrapyard | Discovered new exit (range 15) 257 | -11/Scrapyard | Entered Materials 315 | -10/Materials | Build established: Mutant 531 | -10/Materials | Core integrity fell below 50% 567 | -10/Materials | Discovered new exit (range 10) 579 | -10/Materials | Entered Mines 615 | -10/Mines | Discovered new exit (range 13) 696 | -10/Mines | Met a Derelict shopkeep closing up shop 750 | -10/Mines | A weapon hastily lodged in a ceiling crevice suddenly fell to the ground 797 | -10/Mines | Core integrity fell below 20% 816 | -10/Mines | Build established: Scavenger-Mutant 861 | -10/Mines | Identified exit to Subcaves 1126 | -10/Mines | Discovered new exit (range 5) 1141 | -10/Mines | Entered Subcaves 1216 | -10/Subcaves | Ambushed by swarm of Subdwellers 1220 | -10/Subcaves | Destroyed by T3-IZV(R) with Subdweller Shrapnel Launcher Last Messages --------------- secret down here, seen anything like that?" 01149_ ZT-1PP(h) drops a Scrap Shield: "Protect yourself with this!" 01152_ HV Slug penetrates Wall. 01154_ HV Slug penetrates H8-RTY(R). 01154_ H8-RTY(R) destroyed. 01155_ Dropped Lgt. Ion Engine. 01155_ Dropped Heat Sink. 01156_ Acquired Scrap Shield. 01161_ HV Slug penetrates Twisted Machinery. 01162_ Acquired 26 matter. 01163_ Acquired 3 matter. 01171_ Subatomizers dissect the Heat Sink. 01172_ Acquired 1 matter. 01185_ Subatomizers dissect the Heat Sink. 01192_ GK-NUH(O) collects matter. 01196_ Subatomizers dissect the Heat Sink. A mess of Twisted Machinery falls from the cavern ceiling. 01216_ ZT-1PP(h): "The Subs are coming!" 01219_ HV Slug penetrates T3-IZV(R). 01220_ ZT-1PP(h) destroyed. Map ----- +----------------------------------------------------+ | ?????????????????????????????????????????????????? | | ?????????????????????????????????????????????????? | | ?????????????????????????????????????????????????? | | ?????????????????????????????????????????????????? | | ?????????????????????????????????????????????????? | | ???????????????????????????????????????? ???????? | | ???????????????????????????????????????# ???????? | | ??????????????????????????????????#???? ???????? | | ??????????????????????????????????????? #?#????? | | ??????????????????????????????????????? #??????? | | ????????????????????????#?????????????? #?????? | | ??????????????????????? ##????????????? ?????# | | ??????????????????????? ???????????? ????## | | ????????????????????? ?? #????????????# #??###" | | ???????????????????????? ##???????##### "##?# "" | | ????????????????????????? % #????????# ""#### " | | ????????????????????????? #?????????# ""#??# | | ??????????????? ???#?????# #????????#?# "#??# | | ?????????????????????????# ###????###### ##?# | | ????????????????????##???# #?#### ## "*###! | | ????????????????????# #?## % ### ""==* | | ????????????# ????## ## ##" "%!!! | | ???????????# "## = ## g [%##!# | | ????????????????#; R %! #### ##### | | ?????????????????# ] % #??# #???? | | ?????????????????# @ #??# #?#?# | | ?????????????????##### #####??# #?? " | | ?????????????????????# ## #?#??## | | ????????????????????# #### ## #?????# """ | | ??????????????????? #???#####% #???#? " " | | ??????????????????# #?????????# #??? """ # | | ??????????????????## ?????????? #???# #? | | ???????????????????# ?##??????? ##???########?? | | ??????????????????? %??????????? ?????#??#????? | | ??????????????????## ??????????? ?#???????????? | | ???????????????????# ?????????? ?????????????? | | ???????????????????#??????????? ###????????????? | | ??????????????????????????????? ???????????????? | | ??????????????????????????#????? ???????????????? | | ???????????????????????????????? ???????????????? | | ?????????????????????????????????????????????????? | | ?????????????????????????????????????????????????? | | ?????????????????????????????????????????????????? | | ?????????????????????????????????????????????????? | | ?????????????????????????????????????????????????? | | ?????????????????????????????????????????????????? | | ?????????????????????????????????????????????????? | | ?????????????????????????????????????????????????? | | ?????????????????????????????????????????????????? | | ?????????????????????????????????????????????????? | +----------------------------------------------------+ Best States ------------- Heat Dissipation 35 Energy Generation 10 Energy Capacity 250 Matter Stores 300 Matter Capacity 300 Sight Range 16 Terrain Scan Range 16 Terrain Scan Density 10 Evasion (%) 62 Item Schematics ----------------- None Robot Schematics ------------------ None Fabricated ------------ Nothing Alien Tech Used ----------------- None Achievements -------------- None Challenges ------------ None Game ------ Seed RegenerativeHeartShovel Manual? 0 Play Time 00:14:42 Cumulative 208.9 hours Start 2024.09.29 @ 08:51:25 End 2024.10.01 @ 20:30:59 Sessions 3 Manual Loads 0 Difficulty Rogue Special Mode None Game No. 323 Rogue 323 Adventurer 0 Explorer 0 Win Type - Total 0 Types 0/0/0/0/0/0/0/0/0 Lore% 31 Gallery% 54 Achievement% 40 Wizard Run 0 Options --------- Layout 0 ASCII 0 Keyboard 0 Movement Mouse Keybinds 0 Fullscreen 1 Font 18/SmallcapsGlow Map View 76x50 Zoom Use 0% Tactical HUD 1 Map Filters NONE Filters NONE Steam 1 RUN: 8ba909eb-72f9-4cf3-81ee-eed63b0959d7